bitfinex/quotes_ETHUSD_20250903
["timestamp","ask_amount","ask_price","bid_price","bid_amount"]
[1756907463755,0.1128,4438.7,4438.5,0.001]
[1756907464287,0.02815759,4439.3,4438.5,0.001]
[1756907464502,0.112,4439.0,4438.5,0.001]
[1756907464781,0.02815759,4439.3,4438.5,0.001]
[1756907464987,0.02815759,4439.3,4438.5,2.25396827]
[1756907465170,0.4478,4439.7,4438.5,2.25396827]
[1756907465171,0.02815505,4439.7,4438.9,2.25279957]
[1756907465378,0.4486,4440.0,4438.7,2.25291007]
[1756907465686,2.27856004,4439.8,4439.0,2.25275697]
[1756907465897,0.0262,4439.8,4439.0,2.25275697]
[1756907466101,0.0262,4439.8,4438.5,0.55]
[1756907466396,0.0262,4439.8,4438.6,0.6664]
[1756907466701,0.0262,4439.8,4439.2,2.25264921]
[1756907467070,0.0262,4439.8,4439.0,0.01208754]
[1756907467271,0.0262,4439.8,4439.0,0.549]
[1756907467597,0.0262,4439.8,4439.7,2.25240444]
[1756907467988,0.0262,4439.8,4439.4,4.38]
[1756907468564,0.474,4439.8,4439.2,1.732]
[1756907468897,0.02815505,4439.7,4438.5,4.38]
[1756907469207,0.02815505,4439.7,4438.5,6.63296331]
[1756907469208,2.25261393,4439.3,4438.5,6.63296331]
[1756907469418,2.25263146,4439.3,4438.5,4.38]
[1756907469583,2.25263146,4439.3,4438.5,6.63300315]
[1756907469782,2.25258211,4439.4,4438.5,4.38]
[1756907470112,0.474,4439.8,4438.5,4.38]
[1756907470113,0.4478,4439.3,4438.5,0.001]
[1756907470315,2.54226264,4438.6,4438.5,0.001]
[1756907470517,2.57042467,4438.6,4438.5,0.001]
[1756907470721,3.54722467,4438.6,4438.5,0.001]
[1756907471017,3.79802468,4438.6,4438.5,0.001]
[1756907471219,3.54722467,4438.6,4438.5,0.001]
[1756907472103,3.51906264,4438.6,4438.5,0.001]
[1756907472409,6.54722467,4438.6,4438.5,0.001]
[1756907472581,6.51906264,4438.6,4438.5,0.001]
[1756907472783,2.25321646,4438.1,4438.0,1e-08]
[1756907473002,2.25321646,4438.1,4437.6,0.001]
[1756907473003,2.25341956,4437.7,4437.6,0.001]
[1756907473222,2.2815873,4437.7,4437.6,0.001]
[1756907473408,7.9246873,4437.7,4437.6,0.001]
[1756907473713,7.89651956,4437.7,4437.6,0.001]
[1756907473878,3.51951956,4437.7,4437.6,0.001]
[1756907474080,3.5476873,4437.7,4437.6,0.001]
[1756907474312,3.51951956,4437.7,4437.6,0.001]
[1756907474516,3.5476873,4437.7,4437.6,0.001]
[1756907474810,3.6604873,4437.7,4437.6,0.001]
[1756907475030,3.63231956,4437.7,4437.6,0.001]
[1756907475433,2.25433395,4435.9,4435.8,0.025]
[1756907475578,2.28251312,4435.9,4435.8,0.025]
[1756907476000,1.732,4436.2,4435.8,0.025]
[1756907476201,0.02817853,4436.0,4435.8,0.025]
[1756907476429,0.0281779,4436.1,4435.8,0.574]
[1756907476598,0.4478,4437.9,4436.0,0.2902]
[1756907476799,1.732,4438.5,4436.8,2.25386783]
[1756907477003,2.25347888,4437.6,4436.8,2.80283552]
[1756907477332,4.732,4438.5,4436.1,0.75858]
[1756907477333,0.02816901,4437.5,4436.1,1.30758]
[1756907477630,2.25368017,4437.2,4436.1,1.30758]
[1756907477811,2.25368017,4437.2,4436.3,2.25412751]
[1756907477812,2.25371861,4437.2,4436.3,2.25412751]
[1756907478009,2.25372592,4437.1,4436.1,1.30758]
[1756907478196,0.02816837,4437.6,4436.2,3.2212657]
[1756907478401,2.25377569,4437.0,4436.2,0.96708568]
[1756907478603,0.02816837,4437.6,4436.1,2.80323049]
[1756907478933,2.25366957,4437.3,4436.4,2.25405838]
[1756907479109,4.377,4438.0,4436.4,2.25407988]
[1756907479430,4.377,4438.0,4436.1,2.80319227]
[1756907479431,0.4478,4437.9,4436.1,0.549]
[1756907479597,0.025,4437.8,4436.2,2.2541815]
[1756907479801,0.025,4437.8,4436.3,0.71791815]
[1756907480001,0.025,4437.8,4436.3,2.97203738]
[1756907480202,0.025,4437.8,4436.5,2.25398665]
[1756907480505,0.025,4437.8,4436.4,0.549]
[1756907480737,0.025,4437.8,4436.5,0.46571827]
[1756907481036,0.025,4437.8,4437.7,2.25341956]
[1756907481333,0.025,4437.8,4437.7,9.36401956]
[1756907481542,0.025,4437.8,4437.7,2.282]
[1756907481836,0.025,4437.8,4437.4,4.375]
[1756907482133,2.25346428,4437.7,4436.9,8.36178364]
[1756907482652,0.02816774,4437.7,4437.1,2.25371983]
[1756907482812,0.025,4437.8,4437.1,0.39867198]
[1756907483013,0.025,4437.8,4437.2,2.25365452]
[1756907483207,0.025,4437.8,4437.3,2.25360486]
[1756907483403,0.025,4437.8,4437.2,2.25366316]
[1756907483608,0.002,4437.6,4437.0,0.549]
[1756907483909,0.002,4437.6,4437.5,2.25352112]
[1756907484115,0.002,4437.6,4437.3,2.25358113]
[1756907484433,0.002,4437.6,4437.2,0.549]
[1756907484632,0.002,4437.6,4437.2,3.25626863]
[1756907484935,0.002,4437.6,4437.5,2.25352112]
[1756907485323,0.002,4437.6,4437.5,3.25612112]
[1756907485621,0.002,4437.6,4437.5,7.74192112]
[1756907486442,0.002,4437.6,4437.2,4.373]
[1756907486734,0.002,4437.6,4436.9,2.1866]
[1756907486735,0.002,4437.6,4437.3,0.1128]
[1756907486933,0.002,4437.6,4437.4,2.25356445]
[1756907487134,0.002,4437.6,4437.3,0.6618]
[1756907487316,0.002,4437.6,4437.3,2.91541362]
[1756907487513,0.002,4437.6,4437.3,0.1128]
[1756907487736,0.002,4437.6,4437.3,4.4848]
[1756907487949,0.002,4437.6,4437.3,0.1128]
[1756907488438,2.2536137,4437.4,4437.0,4.372]
[1756907488641,0.1128,4437.5,4436.9,1.733]
[1756907488804,0.03016837,4437.6,4436.9,1.733]
[1756907488805,0.1128,4437.2,4436.9,1.733]
[1756907489006,2.25366972,4437.3,4436.9,1.733]
[1756907489219,0.1128,4437.1,4436.9,1.733]
[1756907489619,2.25377507,4437.0,4436.9,1.733]
[1756907489820,2.25377507,4437.0,4436.2,1.733]
[1756907489821,2.25398063,4436.6,4436.2,1.733]
[1756907490105,0.1128,4436.6,4436.2,1.733]
[1756907490437,0.1128,4436.3,4436.2,1.733]
[1756907490636,0.0012,4437.6,4436.2,2.7121]
[1756907490802,0.1128,4436.7,4436.3,2.25412733]
[1756907491011,0.1128,4436.7,4436.4,0.5322]
[1756907491326,0.1128,4436.7,4436.2,1.733]
[1756907491706,2.25398339,4436.6,4436.2,1.733]
[1756907491905,2.25403613,4436.5,4435.8,0.026]
[1756907492137,0.473,4437.0,4435.8,0.026]
[1756907492138,0.1128,4436.2,4435.8,0.026]
[1756907492544,2.2542862,4436.0,4435.8,0.026]
[1756907492837,0.14097726,4436.2,4435.8,0.026]
[1756907493039,0.1128,4435.9,4435.8,0.026]
[1756907494107,0.1128,4435.9,4435.8,0.8557]
[1756907494310,2.25377507,4437.0,4435.8,5.71001906]
[1756907494643,0.0012,4437.6,4435.9,0.54432689]
[1756907494941,0.0012,4437.6,4437.5,2.36632112]
[1756907495158,0.0012,4437.6,4437.5,9.26032112]
[1756907495309,0.0012,4437.6,4437.5,5.07842112]
[1756907495515,0.0012,4437.6,4437.5,2.378]
[1756907495743,0.0012,4437.6,4437.5,4.63152112]
[1756907495918,0.0012,4437.6,4437.5,9.46367323]
[1756907496118,0.0012,4437.6,4437.5,9.91057323]
[1756907496364,0.0012,4437.6,4437.5,10.70257323]
[1756907497212,0.0012,4437.6,4437.5,6.33357323]
[1756907497442,0.0012,4437.6,4437.5,9.90957323]
[1756907497852,0.0012,4437.6,4437.5,10.70157323]
[1756907499018,0.0012,4437.6,4437.5,10.70057323]
[1756907499768,1e-08,4437.8,4437.7,2.25341956]
[1756907499916,1e-08,4437.8,4437.7,6.05752808]
[1756907500117,1e-08,4437.8,4437.7,8.1903327]
[1756907500347,1e-08,4437.8,4437.7,7.13731956]
[1756907500659,1e-08,4437.8,4437.7,13.77122753]
[1756907500843,1e-08,4437.8,4437.7,9.40522753]
[1756907501035,1e-08,4437.8,4437.7,5.95832753]
[1756907501240,1e-08,4437.8,4437.7,3.69041956]
[1756907501566,1e-08,4437.8,4437.7,6.73221956]
[1756907501769,1e-08,4437.8,4437.7,7.26341956]
[1756907501935,1e-08,4437.8,4437.7,8.50231956]
[1756907502121,1e-08,4437.8,4437.7,11.50231956]
[1756907502322,1e-08,4437.8,4437.7,13.05120363]
[1756907502932,1e-08,4437.8,4437.7,8.68620363]
[1756907503147,1e-08,4437.8,4437.7,13.05120363]
[1756907503350,1e-08,4437.8,4437.7,9.60330363]
[1756907503555,1e-08,4437.8,4437.7,4.70710363]
[1756907503730,0.00200001,4437.8,4437.7,6.73021956]
[1756907504137,0.00200001,4437.8,4437.7,0.1128]
[1756907504348,0.00200001,4437.8,4437.7,6.73021956]
[1756907504591,0.00200001,4437.8,4437.7,7.26241956]
[1756907504780,0.00200001,4437.8,4437.7,8.05441956]
[1756907504929,0.00200001,4437.8,4437.7,9.7054122]
[1756907505132,0.00200001,4437.8,4437.7,9.2585122]
[1756907505445,0.00200001,4437.8,4437.7,24.2638548]
[1756907505646,0.002,4438.3,4438.2,6.04516569]
[1756907505882,0.002,4438.5,4438.2,6.04516569]
[1756907505883,1e-08,4438.5,4438.4,6.04506416]
[1756907506067,1e-08,4438.5,4438.4,21.09838064]
[1756907506384,0.0262,4439.8,4439.7,3.04440444]
[1756907506529,0.0262,4439.8,4439.7,6.887]
[1756907506736,0.0262,4439.8,4439.7,4.09720444]
[1756907506935,0.0262,4439.8,4439.7,8.45920444]
[1756907507272,0.0262,4439.8,4439.7,9.53037329]
[1756907507473,0.0262,4439.8,4439.7,10.32237329]
[1756907508072,0.0262,4439.8,4439.7,6.9988]
[1756907508275,0.0262,4439.8,4439.7,1.8448]
[1756907508440,0.0262,4439.8,4439.7,8.45920444]
[1756907508631,0.0262,4439.8,4439.7,8.45820444]
[1756907508831,0.0262,4439.8,4439.7,1.8448]
[1756907509068,0.0262,4439.8,4439.7,8.45820444]
[1756907509240,0.0262,4439.8,4439.7,9.52927431]
[1756907509560,0.0262,4439.8,4439.7,5.16827431]
[1756907509761,0.0262,4439.8,4439.7,8.45720444]
[1756907509963,0.0262,4439.8,4439.7,6.2048]
[1756907510165,0.0262,4439.8,4439.7,4.09720444]
[1756907510336,0.0262,4439.8,4439.7,8.45720444]
[1756907510971,0.0262,4439.8,4439.7,1.8448]
[1756907510972,0.4992,4439.8,4439.7,1.8448]
[1756907511157,1.0274,4439.8,4439.7,1.732]
[1756907511360,1.0274,4439.8,4439.0,1.732]
[1756907511553,3.27976537,4439.8,4439.2,0.1128]
[1756907511757,1.0274,4439.8,4439.2,0.1128]
[1756907512066,1.0274,4439.8,4439.3,4.359]
[1756907512067,0.4992,4439.8,4439.3,4.359]
[1756907512365,0.0262,4439.8,4439.4,4.37108595]
[1756907512569,0.0262,4439.8,4439.7,2.25240444]
[1756907512754,0.0262,4439.8,4439.7,6.72320444]
[1756907513466,0.0254,4439.8,4439.7,0.1128]
[1756907513667,0.4984,4439.8,4439.7,0.1128]
[1756907513872,0.8029,4439.8,4439.4,0.1128]
[1756907514163,0.8029,4439.8,4439.5,4.358]
[1756907514164,0.3299,4439.8,4439.5,4.358]
[1756907514365,0.473,4439.7,4439.4,0.1128]
[1756907514566,0.473,4439.7,4439.5,4.357]
[1756907514759,0.7775,4439.6,4439.5,4.357]
[1756907514953,0.7775,4439.6,4439.4,0.1128]
[1756907515155,0.3045,4439.6,4439.4,0.1128]
[1756907515344,0.3045,4439.6,4439.5,6.60950591]
[1756907515551,0.0254,4439.8,4439.7,2.25240444]
[1756907515940,0.0254,4439.8,4439.7,2.36520444]
[1756907516144,0.0254,4439.8,4439.7,0.1128]
[1756907516459,0.0254,4439.8,4439.7,2.36520444]
[1756907516967,0.0254,4439.8,4439.7,6.72120444]
[1756907517341,0.0254,4439.8,4439.7,0.1128]
[1756907517542,0.0254,4439.8,4439.7,6.72020444]
[1756907517955,0.0254,4439.8,4439.7,4.4678]
[1756907518151,1.3311,4439.8,4439.7,4.355]
[1756907518439,1.3311,4439.8,4439.7,4.354]
[1756907518859,3.5834537,4439.8,4439.7,4.354]
[1756907519173,1.3311,4439.8,4439.0,1.732]
[1756907519350,0.473,4439.7,4439.3,4.354]
[1756907519673,2.25246466,4439.6,4439.3,4.354]
[1756907519874,0.417,4439.4,4439.3,4.354]
[1756907520180,0.8841,4439.4,4439.0,1.732]
[1756907520384,1.00125759,4439.3,4438.2,1.732]
[1756907520564,0.3042,4438.3,4438.0,4.353]
[1756907520907,0.1128,4438.1,4438.0,4.353]
[1756907521094,0.506,4438.7,4438.0,4.353]
[1756907521256,0.1128,4438.1,4438.0,4.353]
[1756907521456,0.5799,4438.1,4438.0,4.353]
[1756907521681,0.8841,4438.1,4438.0,4.353]
[1756907522045,0.1128,4438.1,4438.0,6.60626723]
[1756907522248,0.4671,4438.6,4438.0,6.60626723]
[1756907522249,0.1128,4438.4,4438.0,4.353]
[1756907522446,0.1128,4438.4,4438.0,4.354]
[1756907522673,0.002,4438.8,4438.3,2.25311493]
[1756907522861,0.002,4438.8,4438.4,4.352]
[1756907523061,0.002,4438.8,4438.4,6.6050478]
[1756907523275,0.002,4438.8,4438.5,2.25296606]
[1756907523575,0.002,4438.8,4438.7,2.36571188]
[1756907523945,0.002,4438.8,4438.7,3.70000771]
[1756907524146,0.002,4438.8,4438.7,4.12061188]
[1756907524590,0.002,4438.8,4438.7,3.68791188]
[1756907524805,0.002,4438.8,4438.7,8.03891188]
[1756907524965,0.002,4438.8,4438.7,9.33101224]
[1756907525561,0.002,4438.8,4438.7,1.40490036]
[1756907525791,0.002,4438.8,4438.7,4.35]
[1756907525996,0.002,4438.8,4438.6,1.732]
[1756907526194,0.4691,4438.8,4438.7,4.35]
[1756907526395,0.3042,4438.7,4438.6,1.732]
[1756907526558,0.3042,4438.7,4438.6,6.082]
[1756907526762,0.3042,4438.7,4438.6,1.732]
[1756907527087,2.2530134,4438.5,4438.4,0.0752]
[1756907527285,3.55847606,4438.5,4438.4,0.0752]
[1756907527459,3.5303134,4438.5,4438.4,0.0752]
[1756907527665,0.7713,4438.5,4438.4,0.0752]
[1756907527878,3.0243134,4438.5,4438.4,0.0752]
[1756907528288,3.5303134,4438.5,4438.4,0.0752]
[1756907528567,0.7713,4438.5,4438.4,0.0752]
[1756907529279,3.0243134,4438.5,4438.4,0.0752]
[1756907529809,3.5303134,4438.5,4438.4,0.0752]
[1756907529976,3.55847606,4438.5,4438.4,0.0752]
[1756907531464,6.55847606,4438.5,4438.0,0.001]
[1756907531667,2.25321646,4438.1,4438.0,0.001]
[1756907531966,2.25331801,4437.9,4437.8,1e-08]
[1756907532197,9.93268448,4437.9,4437.8,1e-08]
[1756907532503,10.87761801,4437.9,4437.8,1e-08]
[1756907533690,2.25407988,4436.4,4435.6,1.732]
[1756907533895,2.28225587,4436.4,4435.6,1.732]
[1756907534220,3.55955587,4436.4,4435.6,1.732]
[1756907534373,3.05355587,4436.4,4435.6,1.732]
[1756907534688,3.02537988,4436.4,4435.6,1.732]
[1756907535289,0.3042,4436.4,4435.6,1.732]
[1756907535511,1.732,4436.9,4435.6,2.2622]
[1756907535810,0.49527345,4436.8,4435.6,1.732]
[1756907535972,2.25407988,4436.4,4435.6,1.732]
[1756907536174,2.36687988,4436.4,4435.7,0.1128]
[1756907536524,3.67235587,4436.4,4435.3,0.001]
[1756907536990,3.13817988,4436.4,4435.3,0.001]
[1756907537372,3.13817988,4436.4,4435.3,2.25563631]
[1756907537574,2.36687988,4436.4,4435.5,2.36733304]
[1756907537775,2.36687988,4436.4,4435.9,2.25429605]
[1756907537776,0.1128,4436.4,4435.9,2.25429605]
[1756907538026,16.9724426,4439.1,4436.3,0.8163]
[1756907538027,2.2001,4437.7,4436.3,0.8163]
[1756907538176,0.67775244,4438.0,4436.3,2.982]
[1756907538371,0.1128,4437.2,4436.6,0.1128]
[1756907538896,0.1128,4437.2,4436.7,2.25391061]
[1756907539078,2.25347434,4437.6,4436.4,0.2982]
[1756907539278,2.27837068,4437.8,4436.5,0.9629]
[1756907539499,2.27837068,4437.8,4436.7,2.25392746]
[1756907539677,0.025,4437.8,4436.8,2.52253402]
[1756907539882,2.27837252,4437.8,4436.9,2.25378679]
[1756907540109,0.025,4437.8,4436.6,0.5302]
[1756907540494,2.25352053,4437.6,4436.8,2.25385688]
[1756907540700,0.025,4437.8,4436.8,2.25385688]
[1756907540701,2.27837298,4437.8,4437.0,2.25373161]
[1756907540880,0.025,4437.8,4437.1,0.01211364]
[1756907541213,0.025,4437.8,4437.1,0.5302]
[1756907541380,2.25358308,4437.4,4436.6,2.25396569]
[1756907541577,2.25353244,4437.5,4436.7,6.5959234]
[1756907541801,0.025,4437.8,4436.7,5.35311004]
[1756907542003,0.025,4437.8,4437.7,0.2851]
[1756907542179,0.027,4437.8,4437.7,2.53851956]
[1756907542375,0.002,4438.3,4438.2,2.25316569]
[1756907542581,0.002,4438.3,4438.2,5.23416569]
[1756907542987,0.002,4438.3,4438.2,2.5483]
[1756907543187,0.002,4438.3,4438.2,6.8893]
[1756907543389,0.002,4438.3,4438.2,10.4894172]
[1756907543615,0.002,4438.3,4438.2,11.2814172]
[1756907543982,0.002,4438.3,4438.2,10.0557172]
[1756907544313,0.002,4438.3,4438.2,10.4884172]
[1756907544688,0.002,4438.3,4438.2,1.733]
[1756907545923,0.002,4438.3,4438.2,4.80146569]
[1756907546083,0.002,4438.3,4438.2,2.5483]
[1756907546285,0.002,4438.3,4438.2,6.071]
[1756907546487,0.002,4438.3,4438.2,1.733]
[1756907548830,0.002,4438.3,4438.2,5.40867596]
[1756907549142,0.002,4438.3,4438.2,2.1309]
[1756907549297,0.002,4438.3,4438.2,1.8458]
[1756907549493,2.25332553,4437.9,4437.4,1.733]
[1756907549805,0.1128,4437.6,4437.4,1.733]
[1756907550149,0.1128,4437.6,4436.8,0.025]
[1756907550151,2.25382586,4436.9,4436.8,0.025]
[1756907550295,2.70882586,4436.9,4436.8,0.025]
[1756907550489,2.84979868,4436.9,4436.8,0.025]
[1756907550719,3.37299868,4436.9,4436.8,0.025]
[1756907550999,3.37299868,4436.9,4435.1,0.09033638]
[1756907551000,3.0,4436.8,4435.4,0.1128]
[1756907551329,0.1128,4435.5,4434.8,0.1128]
[1756907551691,2.25452903,4435.6,4434.3,4.334]
[1756907551894,2.25452903,4435.6,4434.5,2.36784432]
[1756907551895,0.1128,4435.1,4434.5,2.36784432]
[1756907552423,2.25486944,4434.9,4434.5,0.1128]
[1756907552725,2.36754165,4435.1,4434.5,0.1128]
[1756907552892,0.1128,4435.1,4434.5,0.1128]
[1756907553093,1.733,4435.8,4433.5,1.733]
[1756907553094,0.1128,4434.6,4433.5,0.1128]
[1756907553293,0.1128,4434.1,4433.6,0.01215662]
[1756907553592,2.25516301,4434.3,4433.0,17.01955848]
[1756907553798,2.25516301,4434.3,4433.1,2.25575782]
[1756907553998,0.455,4435.0,4433.7,0.1128]
[1756907553999,0.1128,4434.4,4433.7,0.1128]
[1756907554230,2.25515761,4434.3,4433.7,0.1128]
[1756907554433,0.1128,4434.4,4433.7,0.1128]
[1756907554949,0.02818552,4434.9,4433.7,2.92554806]
[1756907554950,2.25484248,4434.9,4433.7,2.92554806]
[1756907555148,0.1128,4434.8,4434.2,0.1128]
[1756907556051,0.1128,4434.8,4433.9,0.1128]
[1756907556411,0.1128,4434.8,4434.0,2.25529995]
[1756907556617,0.1128,4434.8,4434.1,2.49205193]
[1756907556839,0.1128,4434.8,4434.1,0.23681]
[1756907557039,2.36769604,4434.8,4434.1,0.23681]
[1756907557350,2.36770469,4434.8,4434.1,0.23681]
[1756907557645,0.1128,4434.8,4433.9,0.1128]
[1756907557855,0.1128,4434.8,4434.0,0.01215254]
[1756907558016,0.1128,4435.0,4434.3,0.1128]
[1756907558216,0.455,4435.6,4434.0,0.792]
[1756907558413,1.733,4435.8,4434.5,0.792]
[1756907558628,0.455,4436.2,4435.3,2.25463626]
[1756907558629,2.25423999,4436.1,4435.3,2.25463626]
[1756907558849,0.455,4436.2,4434.7,0.792]
[1756907559021,0.025,4435.8,4435.2,2.25464701]
[1756907559430,0.025,4435.8,4434.9,4.331]
[1756907559615,0.025,4435.8,4435.0,0.5123]
[1756907559813,0.025,4435.8,4434.4,1.733]
[1756907559814,0.455,4435.7,4434.4,1.733]
[1756907560049,2.25470387,4435.2,4434.4,1.733]
[1756907560251,0.02818425,4435.1,4434.4,1.733]
[1756907560550,2.709738,4435.2,4434.4,1.733]
[1756907560750,2.25489274,4434.9,4434.4,1.733]
[1756907561002,2.70972923,4435.2,4434.4,3.98809042]
[1756907561127,2.25474563,4435.1,4434.4,1.733]
[1756907561316,2.25443784,4435.7,4434.8,2.25485422]
[1756907561621,0.025,4435.8,4435.0,2.25479095]
[1756907561928,2.25449361,4435.6,4434.7,2.25490222]
[1756907562146,0.025,4435.8,4434.5,5.121]
[1756907562452,0.48,4435.8,4434.7,2.25494288]
[1756907562656,0.0242,4435.8,4434.7,2.25494396]
[1756907562859,0.0242,4435.8,4434.8,0.01214137]
[1756907563022,0.0242,4435.8,4435.7,3.0464356]
[1756907563350,0.0242,4435.8,4435.7,9.6375301]
[1756907564227,0.0242,4435.8,4435.7,5.3095301]
[1756907564429,2.25384516,4436.9,4435.8,0.792]
[1756907564630,0.455,4437.1,4435.7,2.2630945]
[1756907564631,2.25419814,4436.2,4435.7,1.733]
[1756907564821,2.25442908,4435.8,4435.0,4.327]
[1756907565016,2.25454113,4435.5,4434.9,1.733]
[1756907565251,0.455,4436.1,4434.9,1.733]
[1756907565456,2.25433482,4435.9,4435.0,2.25479143]
[1756907565656,1.733,4436.4,4434.9,1.733]
[1756907565821,1.733,4436.4,4435.3,2.25460198]
[1756907566022,1.733,4436.4,4434.0,1.733]
[1756907566023,2.25473698,4435.2,4434.0,1.733]
[1756907566226,0.455,4436.3,4434.0,3.98829242]
[1756907566227,2.25468612,4435.3,4434.0,3.98829242]
[1756907566445,2.25470602,4435.2,4434.0,1.733]
[1756907566661,0.48318425,4435.1,4434.0,1.733]
[1756907567031,0.455,4435.1,4434.0,1.733]
[1756907567233,1.76118235,4435.4,4433.2,1.733]
[1756907567453,2.25512617,4434.4,4433.3,6.58065214]
[1756907567653,0.455,4434.7,4433.6,2.25547268]
[1756907568050,2.25500229,4434.6,4433.4,4.325]
[1756907568271,2.25500229,4434.6,4433.7,2.25540743]
[1756907568462,0.1128,4434.6,4433.9,2.3681503]
[1756907568684,0.1128,4434.6,4433.9,0.1128]
[1756907569173,0.1128,4434.6,4433.9,2.36814063]
[1756907569372,0.1128,4434.6,4433.9,0.1128]
[1756907569548,2.25508759,4434.5,4433.9,0.1128]
[1756907569765,0.1128,4434.6,4433.9,0.1128]
[1756907569967,0.455,4435.2,4434.0,0.45583353]
[1756907570141,0.1128,4435.2,4434.4,0.1128]
[1756907570347,0.1128,4435.2,4434.5,2.25504566]
[1756907570553,2.25479388,4435.0,4434.7,0.1128]
[1756907570752,0.1128,4435.2,4434.7,0.1128]
[1756907570948,0.455,4435.7,4434.8,2.25489311]
[1756907571255,0.1128,4435.5,4434.7,0.11279999]
[1756907571787,2.25464758,4435.3,4434.7,0.11279999]
[1756907571938,0.48318362,4435.2,4434.7,0.11279999]
[1756907572137,0.48318362,4435.2,4434.0,1.733]
[1756907572138,2.25489311,4434.8,4434.2,0.1128]
[1756907572333,2.25499481,4434.6,4434.0,1.8458]
[1756907572672,2.25509673,4434.4,4433.8,0.1128]
[1756907572837,2.36785779,4434.5,4433.8,0.1128]
[1756907573032,0.1128,4434.5,4433.8,0.1128]
[1756907573265,2.25509651,4434.4,4433.8,0.1128]
[1756907573596,2.2551374,4434.4,4433.8,0.1128]
[1756907573766,0.1128,4434.5,4433.8,2.36819474]
[1756907573967,0.1128,4434.5,4433.8,0.1128]
[1756907574162,2.25524801,4434.2,4433.8,0.1128]
[1756907574358,0.1128,4434.5,4433.8,0.1128]
[1756907574558,2.36786146,4434.5,4433.8,0.1128]
[1756907574780,2.2551178,4434.4,4433.8,0.1128]
[1756907574975,0.1128,4434.5,4433.8,0.1128]
[1756907575159,0.455,4434.4,4433.8,0.1128]
[1756907575376,2.25549562,4433.7,4433.3,1.734]
[1756907575690,2.36819707,4433.9,4433.3,1.734]
[1756907575882,0.1128,4433.9,4433.3,1.734]
[1756907576059,0.5678,4433.9,4433.3,1.734]
[1756907576261,2.2554703,4433.7,4433.3,1.734]
[1756907576475,0.455,4433.6,4433.2,0.1128]
[1756907576967,2.36816415,4433.9,4433.2,0.1128]
[1756907577164,2.2555129,4433.6,4433.2,0.1128]
[1756907577376,2.25540168,4433.8,4433.2,0.1128]
[1756907577581,2.25553269,4433.6,4433.2,0.0128]
[1756907577966,0.455,4433.7,4432.1,2.25626678]
[1756907577967,2.25591704,4432.8,4432.1,2.25626678]
[1756907578206,2.25591704,4432.8,4432.0,0.001]
[1756907578207,2.25591704,4432.8,4432.2,0.1128]
[1756907578375,0.1128,4432.9,4432.0,0.001]
[1756907578376,0.02819824,4432.9,4432.0,0.001]
[1756907578565,0.455,4432.7,4432.0,0.001]
[1756907578898,0.1128,4432.1,4432.0,0.001]
[1756907579596,2.82406678,4432.1,4432.0,0.001]
[1756907579904,3.51686678,4432.1,4432.0,0.001]
[1756907580087,3.54507011,4432.1,4432.0,0.001]
[1756907580418,0.1128,4432.1,4432.0,0.001]
[1756907580568,0.4449,4432.7,4432.0,0.001]
[1756907580965,2.25597793,4432.7,4432.0,0.001]
[1756907581193,0.4449,4433.3,4432.0,2.25730709]
[1756907581365,3.4449,4433.3,4432.0,2.25726768]
[1756907581561,6.051,4433.6,4432.7,0.001]
[1756907581562,2.25591048,4432.8,4432.7,0.001]
[1756907581762,2.55841048,4432.8,4432.7,0.001]
[1756907581963,3.03150936,4432.8,4432.7,0.001]
[1756907582168,3.69611048,4432.8,4432.7,0.001]
[1756907582503,3.6928,4433.5,4432.7,0.001]
[1756907582689,3.00331048,4432.8,4432.7,0.001]
[1756907583069,0.3025,4432.8,4432.7,0.001]
[1756907583265,2.25591048,4432.8,4432.7,0.001]
[1756907583480,3.00331048,4432.8,4432.7,0.001]
[1756907583870,3.72430936,4432.8,4432.7,0.001]
[1756907584399,2.4814,4432.8,4432.7,0.001]
[1756907584790,0.6928,4433.6,4432.7,0.001]
[1756907585107,6.073,4433.8,4432.7,0.1423]
[1756907585108,1.759,4433.8,4432.7,0.1423]
[1756907585408,0.025,4433.8,4432.8,0.8041668]
[1756907585704,0.025,4433.8,4433.6,2.25549122]
[1756907585888,0.025,4433.8,4432.9,2.59318575]
[1756907585889,0.025,4433.8,4433.0,0.792]
[1756907586104,0.025,4433.8,4433.1,0.792]
[1756907586509,0.025,4433.8,4433.5,2.25555235]
[1756907586684,0.025,4433.8,4433.7,2.39675255]
[1756907586890,0.0242,4433.8,4433.7,5.16242781]
[1756907587095,0.0242,4433.8,4433.7,4.22912781]
[1756907587298,2.25591048,4432.8,4430.8,0.025]
[1756907587698,2.25611406,4432.4,4430.8,0.025]
[1756907588026,2.28431548,4432.4,4430.8,0.025]
[1756907588185,2.28431548,4432.4,4430.8,2.28192697]
[1756907588186,3.42201548,4432.4,4430.8,2.28192697]
[1756907588391,3.42201548,4432.4,4430.8,0.025]
[1756907588818,3.42201548,4432.4,4430.8,2.28188591]
[1756907589205,3.42201548,4432.4,4430.8,0.025]
[1756907590025,3.39381406,4432.4,4430.8,0.025]
[1756907590223,7.73301548,4432.4,4430.8,0.025]
[1756907590428,2.25626678,4432.1,4430.8,0.025]
[1756907590587,5.25631768,4432.0,4430.8,0.025]
[1756907590790,2.36932134,4431.6,4430.8,0.025]
[1756907591089,5.36932134,4431.6,4430.8,0.025]
[1756907591352,3.5577,4431.6,4430.8,0.025]
[1756907591488,10.81802134,4431.6,4430.8,0.025]
[1756907592225,5.81422134,4431.6,4430.8,0.025]